bitfinex-derivatives/quotes_BTCF0:USTF0_20241117
["timestamp","ask_amount","ask_price","bid_price","bid_amount"]
[1731845966421,0.00886602,91032.0,91018.0,1.5]
[1731845966422,0.00886602,91032.0,91024.0,0.26159985]
[1731845966630,0.00886602,91032.0,91028.0,0.19622022]
[1731845966815,0.00886602,91032.0,91027.0,0.19622022]
[1731845967016,0.00886602,91032.0,91023.0,0.26159985]
[1731845967017,0.0329,91031.0,91030.0,0.19622874]
[1731845967323,0.087823,91031.0,91030.0,0.19622874]
[1731845967730,0.054927,91025.0,91024.0,0.26159985]
[1731845968029,0.0329,91031.0,91024.0,0.26159985]
[1731845968229,0.054926,91027.0,91025.0,0.054927]
[1731845968419,0.054926,91026.0,91025.0,0.26159985]
[1731845969327,0.0329,91031.0,91025.0,0.26159985]
[1731845969523,0.054926,91026.0,91025.0,0.26159985]
[1731845970221,0.054926,91026.0,91023.0,0.054928]
[1731845970222,0.054926,91026.0,91024.0,0.26159985]
[1731845970424,0.054926,91026.0,91025.0,0.054927]
[1731845971232,0.06378902,91032.0,91027.0,0.054925]
[1731845971538,0.00886602,91032.0,91031.0,0.31652285]
[1731845972041,0.00886602,91032.0,91031.0,0.054923]
[1731845972437,0.00886602,91032.0,91028.0,0.19623867]
[1731845973730,0.00886602,91032.0,91029.0,0.10985389]
[1731845973925,0.054924,91029.0,91028.0,0.19623867]
[1731845974130,0.00886602,91032.0,91025.0,0.19623867]
[1731845974323,0.00886602,91032.0,91022.0,0.19633801]
[1731845974525,0.00886602,91032.0,91020.0,0.19633801]
[1731845974526,0.054928,91023.0,91020.0,0.19633801]
[1731845974832,0.00886602,91032.0,91020.0,0.19633801]
[1731845975135,0.054929,91021.0,91020.0,0.19633801]
[1731845975324,0.054929,91021.0,91018.0,1.5]
[1731845975325,0.054929,91021.0,91019.0,0.05562428]
[1731845975519,0.054929,91021.0,91018.0,1.76159985]
[1731845975719,0.05493,91020.0,91019.0,0.10986536]
[1731845975935,0.0312,91022.0,91019.0,0.10986536]
[1731845976324,0.0312,91022.0,91019.0,0.37146521]
[1731845976525,0.0312,91022.0,91019.0,0.10986536]
[1731845977433,0.0312,91022.0,91021.0,0.2619356]
[1731845977734,0.0312,91022.0,91018.0,1.61004411]
[1731845977735,0.086129,91022.0,91018.0,1.61004411]
[1731845977921,0.086129,91022.0,91021.0,0.26194139]
[1731845978722,0.054929,91021.0,91020.0,0.26194139]
[1731845978927,0.054929,91021.0,91020.0,0.41724178]
[1731845982333,0.0312,91022.0,91020.0,0.41724178]
[1731845982638,0.054926,91027.0,91021.0,0.47217078]
[1731845982833,0.054926,91027.0,91025.0,0.32754727]
[1731845983137,0.00886602,91032.0,91019.0,0.39269486]
[1731845983138,0.00886602,91032.0,91026.0,0.32754727]
[1731845983342,0.054924,91030.0,91026.0,0.32754727]
[1731845983528,0.054925,91029.0,91026.0,0.32754727]
[1731845983730,0.054925,91029.0,91027.0,0.74560564]
[1731845983931,0.054925,91029.0,91027.0,0.32754727]
[1731845984338,0.054925,91029.0,91026.0,0.32754727]
[1731845984542,0.054925,91029.0,91027.0,0.32754727]
[1731845985233,0.054925,91028.0,91027.0,0.32754727]
[1731845985430,0.00886602,91032.0,91023.0,0.3608]
[1731845985431,0.054926,91027.0,91026.0,0.32754727]
[1731845986031,0.054926,91026.0,91025.0,0.32754727]
[1731845986240,0.054926,91026.0,91025.0,0.74581988]
[1731845986438,0.054926,91026.0,91025.0,0.41827193]
[1731845987146,0.054927,91024.0,91023.0,0.26205574]
[1731845987333,0.17367177,91032.0,91018.0,1.5]
[1731845987334,0.16480575,91031.0,91018.0,1.5]
[1731845987535,0.054926,91026.0,91025.0,0.1965707]
[1731845987838,0.05343838,91026.0,91020.0,0.1965707]
[1731845988046,0.054929,91021.0,91020.0,0.1965707]
[1731845988631,0.05493,91020.0,91019.0,0.1965707]
[1731845989444,0.05493,91019.0,91018.0,0.1965707]
[1731845989645,0.054931,91018.0,91017.0,0.1965707]
[1731845990639,0.054931,91018.0,91016.0,1.554932]
[1731845990640,0.3608,91022.0,91016.0,1.6965707]
[1731845990851,0.054932,91017.0,91016.0,1.6965707]
[1731845991446,0.054932,91016.0,91015.0,0.2515027]
[1731845991635,0.054932,91016.0,91015.0,0.054932]
[1731845991945,0.054932,91016.0,91015.0,1.554932]
[1731845992342,0.054932,91016.0,91015.0,0.054932]
[1731845992548,0.054932,91016.0,91011.0,0.05603907]
[1731845992549,0.16478096,91020.0,91011.0,0.1965707]
[1731845992750,0.054935,91011.0,91010.0,0.1965707]
[1731845992942,0.054936,91010.0,91009.0,0.054936]
[1731845993443,0.063726,91010.0,91009.0,0.054936]
[1731845994149,0.063726,91010.0,91009.0,0.4671953]
[1731845994646,0.063726,91010.0,91009.0,0.4122593]
[1731845994947,0.063726,91010.0,91006.0,1.5]
[1731845994948,0.00879,91010.0,91008.0,0.32763022]
[1731845995134,0.054937,91008.0,91007.0,0.32763022]
[1731845995441,0.00879,91010.0,91000.0,0.086841]
[1731845995636,0.00879,91010.0,91006.0,0.32758622]
[1731845995835,0.00879,91010.0,91000.0,0.14183671]
[1731845995836,0.054938,91006.0,91005.0,0.32758622]
[1731845996050,0.054938,91006.0,91005.0,2.24019334]
[1731845996245,0.054938,91006.0,91005.0,1.82760361]
[1731845996748,0.054938,91006.0,91005.0,0.32760361]
[1731845996945,0.054939,91005.0,91004.0,0.32760361]
[1731845997243,0.054939,91005.0,91004.0,0.41256749]
[1731845997544,0.063726,91010.0,91004.0,0.41248482]
[1731845997749,0.00879,91010.0,91009.0,0.054936]
[1731845997939,0.00879,91010.0,91009.0,0.46736998]
[1731845998340,0.054932,91016.0,91010.0,0.054935]
[1731845998646,0.031,91023.0,91011.0,0.32740283]
[1731845998944,0.05493,91020.0,91018.0,0.2619262]
[1731845999144,0.031,91023.0,91019.0,0.2619262]
[1731845999349,0.05493,91020.0,91019.0,0.2619262]
[1731845999644,0.031,91023.0,91009.0,1.5]
[1731845999645,0.031,91023.0,91018.0,0.2619262]
[1731845999837,0.054927,91025.0,91018.0,0.31586011]
[1731846000039,0.054929,91022.0,91019.0,0.2619262]
[1731846000348,0.00318,91024.0,91019.0,0.2619262]
[1731846000548,0.00318,91024.0,91018.0,0.05393391]
[1731846000549,0.00318,91024.0,91021.0,0.2619262]
[1731846000845,0.00318,91024.0,91023.0,0.2619262]
[1731846001049,0.058108,91024.0,91023.0,0.26187624]
[1731846001233,0.058108,91024.0,91016.0,0.088132]
[1731846001234,0.00318,91024.0,91022.0,0.26187624]
[1731846001439,0.054928,91023.0,91022.0,0.26187624]
[1731846001850,0.054928,91023.0,91018.0,0.32740283]
[1731846002042,0.054928,91023.0,91022.0,0.26188488]
[1731846002246,0.054928,91023.0,91021.0,0.26188488]
[1731846002853,0.054929,91022.0,91021.0,0.26188488]
[1731846003047,0.054929,91022.0,91020.0,0.26188488]
[1731846003245,0.00318,91024.0,91021.0,0.26188488]
[1731846003549,0.00318,91024.0,91015.0,0.68820283]
[1731846003550,0.0328,91023.0,91015.0,0.32740283]
[1731846003748,0.054929,91021.0,91020.0,0.26197292]
[1731846003939,0.05493,91020.0,91019.0,0.26197292]
[1731846004140,0.0328,91023.0,91018.0,0.26197292]
[1731846004442,0.0328,91023.0,91002.0,0.0051]
[1731846004443,0.49253203,91021.0,91015.0,0.19654789]
[1731846004757,0.054933,91014.0,91013.0,0.19654789]
[1731846004952,0.13173203,91020.0,91008.0,0.26197292]
[1731846005147,0.0325,91013.0,91011.0,0.1965526]
[1731846005342,0.054935,91011.0,91010.0,0.1965526]
[1731846005544,0.0325,91013.0,91006.0,0.26197292]
[1731846005855,0.0325,91013.0,91009.0,0.19653395]
[1731846006056,0.054936,91009.0,91008.0,0.19653395]
[1731846006553,0.054937,91008.0,91007.0,0.19653395]
[1731846007544,0.054938,91007.0,91006.0,0.19653395]
[1731846007744,0.054939,91004.0,91003.0,0.05494]
[1731846008250,0.054939,91004.0,91003.0,0.31691292]
[1731846009147,0.054939,91004.0,91003.0,0.05494]
[1731846009358,0.054942,91000.0,90999.0,0.19637459]
[1731846009552,0.054942,90999.0,90998.0,0.25131759]
[1731846009755,0.054942,90999.0,90998.0,0.25130807]
[1731846009960,0.054942,90999.0,90998.0,0.054943]
[1731846013460,0.054944,90997.0,90996.0,0.02209513]
[1731846013650,0.054944,90997.0,90996.0,0.00010292]
[1731846015660,0.054944,90997.0,90996.0,9.2e-07]
[1731846015853,0.73808464,90997.0,90996.0,9.2e-07]
[1731846016053,0.054949,90988.0,90987.0,0.00506092]
[1731846016249,0.503669,90988.0,90987.0,0.00506092]
[1731846016563,1.133389,90988.0,90987.0,0.00506092]
[1731846016752,1.18685526,90988.0,90987.0,0.00506092]
[1731846017064,0.833389,90988.0,90987.0,0.00506092]
[1731846017451,0.745469,90988.0,90987.0,0.00506092]
[1731846017755,0.503669,90988.0,90987.0,0.00506092]
[1731846020650,0.506859,90988.0,90987.0,0.00506092]
[1731846020862,0.418939,90988.0,90987.0,0.00506092]
[1731846021066,0.506859,90988.0,90987.0,0.00506092]
[1731846025253,0.836579,90988.0,90987.0,0.00506092]
[1731846026168,0.748659,90988.0,90987.0,0.00506092]
[1731846026364,0.836579,90988.0,90987.0,0.00506092]
[1731846027266,0.506859,90988.0,90987.0,0.00506092]
[1731846027856,0.418939,90988.0,90987.0,0.00506092]
[1731846028061,0.506859,90988.0,90987.0,0.00506092]
[1731846029073,0.418939,90988.0,90987.0,0.00506092]
[1731846029759,0.418939,90988.0,90987.0,0.03596092]
[1731846030059,0.418939,90988.0,90987.0,1.53596092]
[1731846030860,0.058139,90988.0,90987.0,1.53596092]
[1731846031467,0.058139,90988.0,90987.0,0.03596092]
[1731846031671,0.00319,90988.0,90987.0,0.03596092]
[1731846032272,0.00319,90988.0,90987.0,0.09221918]
[1731846032472,0.00319,90988.0,90987.0,0.03596092]
[1731846033170,0.00319,90988.0,90987.0,0.00506092]
[1731846034270,0.00319,90988.0,90987.0,0.36586092]
[1731846034568,0.00319,90988.0,90987.0,0.62783384]
[1731846034754,0.3608,91002.0,90988.0,0.054949]
[1731846034755,0.054942,91000.0,90988.0,0.054949]
[1731846034961,0.054942,91000.0,90999.0,0.3608]
[1731846035962,0.14311699,91009.0,90997.0,0.0317]
[1731846036572,0.054943,90999.0,90997.0,0.0317]
[1731846037073,0.054943,90998.0,90997.0,0.0317]
[1731846037460,0.086931,91019.0,91004.0,0.054939]
[1731846037461,0.054938,91006.0,91004.0,0.054939]
[1731846037661,0.054938,91006.0,91005.0,0.55694489]
[1731846037866,0.11992,91019.0,91005.0,0.55694489]
[1731846037867,0.14408379,91019.0,91005.0,0.3608]
[1731846038172,0.054936,91009.0,91007.0,0.1961304]
[1731846039062,0.054936,91009.0,91005.0,0.3913]
[1731846039763,0.14408379,91019.0,91006.0,1.5]
[1731846039969,0.054937,91008.0,91006.0,1.5]
[1731846040172,0.14408379,91019.0,91006.0,1.5]
[1731846040173,0.054933,91015.0,91008.0,0.054937]
[1731846040670,0.05616379,91019.0,91008.0,0.054937]
[1731846040671,0.054933,91014.0,91008.0,0.054937]
[1731846040875,0.054935,91013.0,91008.0,0.054937]
[1731846041181,0.054935,91013.0,91006.0,1.5]
[1731846041182,0.054934,91013.0,91006.0,1.5]
[1731846041674,0.054934,91013.0,91007.0,0.10987622]
[1731846041971,0.054938,91006.0,91005.0,0.0305]
[1731846044770,0.3608,91016.0,90997.0,0.0317]
[1731846044970,0.054943,90998.0,90997.0,0.0317]
[1731846045879,0.206713,91015.0,90995.0,0.3608]
[1731846045880,0.054937,91009.0,90995.0,0.3608]
[1731846046175,0.054944,90996.0,90995.0,0.3608]
[1731846048271,0.13151919,91004.0,90995.0,0.3608]
[1731846048473,0.16440176,91010.0,90995.0,0.3608]
[1731846048474,0.054942,91000.0,90995.0,0.3608]
[1731846049482,0.054942,91000.0,90996.0,1.5]
[1731846049873,0.054942,90999.0,90996.0,1.5]
[1731846050376,0.054942,90999.0,90995.0,0.3608]
[1731846050576,0.054944,90997.0,90995.0,0.3608]
[1731846051275,0.054944,90997.0,90991.0,0.0305]
[1731846051479,0.054945,90995.0,90991.0,0.0305]
[1731846052386,0.054945,90995.0,90991.0,0.085447]
[1731846053083,0.054945,90995.0,90992.0,0.10989856]
[1731846054178,0.054945,90995.0,90992.0,0.30602896]
[1731846054575,0.054945,90995.0,90993.0,0.1961304]
[1731846054977,0.054945,90994.0,90993.0,0.1961304]
[1731846055186,0.0304,91004.0,90990.0,1.5]
[1731846055388,0.11828,91004.0,90990.0,1.5]
[1731846055579,0.054947,90991.0,90990.0,1.6961304]
[1731846056085,0.054947,90991.0,90990.0,1.69627848]
[1731846056474,0.054947,90991.0,90984.0,0.05538204]
[1731846056475,0.3608,90999.0,90988.0,0.19627848]
[1731846056675,0.086943,90998.0,90983.0,0.19627848]
[1731846056886,0.054944,90997.0,90983.0,0.19627848]
[1731846057081,0.054944,90997.0,90981.0,0.05498338]
[1731846057082,0.054944,90997.0,90981.0,0.25126186]
[1731846057275,0.18646319,90997.0,90980.0,0.19627848]
[1731846057485,0.13151919,90995.0,90979.0,0.19627848]
[1731846057682,0.054954,90980.0,90979.0,0.19627848]
[1731846058480,0.054954,90979.0,90978.0,1.69627848]
[1731846059291,0.054954,90979.0,90978.0,1.5]
[1731846059685,0.054954,90979.0,90978.0,1.69650606]
[1731846060194,0.054954,90979.0,90978.0,1.69650035]
[1731846060578,0.054951,90984.0,90981.0,0.054953]
[1731846060884,0.03150001,90991.0,90982.0,0.62232652]
[1731846061083,0.054949,90988.0,90986.0,0.1965071]
[1731846061283,0.054946,90993.0,90989.0,0.054948]
[1731846061473,0.054946,90993.0,90983.0,0.65472652]
[1731846061474,0.054946,90993.0,90990.0,0.054948]
[1731846061977,0.054946,90993.0,90988.0,0.25142094]
[1731846062178,0.032,90998.0,90988.0,0.25142094]
[1731846062387,0.054947,90992.0,90988.0,0.054949]
[1731846064185,0.13151919,90995.0,90991.0,0.054947]
[1731846064391,0.13151919,90995.0,90992.0,0.054947]
[1731846065185,0.13151919,90995.0,90991.0,0.3608]
[1731846065186,0.13151919,90997.0,90995.0,0.054945]
[1731846065387,0.054944,90998.0,90995.0,0.054945]
[1731846065589,0.13151919,91002.0,90991.0,0.3608]
[1731846065895,0.054941,91002.0,90995.0,0.054945]
[1731846066077,0.0304,91004.0,90995.0,0.054945]
[1731846066078,0.16191919,91004.0,90995.0,0.054945]
[1731846066282,0.054941,91001.0,90995.0,0.054945]
[1731846066479,0.054943,90999.0,90995.0,0.054945]
[1731846068696,0.054943,90998.0,90995.0,0.054945]
[1731846070185,0.054943,90998.0,90995.0,0.31647152]
[1731846070386,0.054943,90998.0,90995.0,0.054945]
[1731846070591,0.054943,90998.0,90995.0,0.31647152]
[1731846071597,0.054943,90998.0,90997.0,0.26152652]
[1731846072095,0.054943,90998.0,90995.0,0.054945]
[1731846072297,0.054943,90998.0,90997.0,0.26222666]
[1731846072498,0.054943,90998.0,90995.0,0.054945]
[1731846072499,0.13151919,91011.0,90995.0,0.32968]
[1731846072701,0.13165311,91021.0,91010.0,0.3608]
[1731846072999,0.3659,91029.0,91010.0,0.3608]
[1731846073000,0.054932,91016.0,91015.0,0.26214078]
[1731846073191,0.054932,91016.0,91011.0,0.26214078]
[1731846073192,0.054935,91012.0,91011.0,0.26214078]
[1731846073399,0.054936,91010.0,91008.0,0.19673102]
[1731846073581,0.27442511,91016.0,91005.0,0.19673102]
[1731846073582,0.054938,91007.0,91005.0,0.19673102]
[1731846074188,0.054938,91007.0,91006.0,0.19673102]
[1731846074502,0.054938,91007.0,91005.0,0.19673102]
[1731846075196,0.054938,91007.0,91006.0,0.19673102]
[1731846075590,0.054938,91007.0,91005.0,0.19673102]
[1731846076292,0.054938,91007.0,91001.0,0.31708178]
[1731846076293,0.054938,91007.0,91001.0,0.054941]
[1731846076590,0.0633,91011.0,90997.0,1.5]
[1731846076591,0.13165479,91005.0,91002.0,0.05837627]
[1731846076796,0.18659379,91006.0,91003.0,0.00343627]
[1731846076995,0.18659379,91006.0,91004.0,0.00343627]
[1731846077196,0.18659379,91006.0,91005.0,0.00343627]
[1731846077586,0.054939,91006.0,91005.0,0.00343627]
[1731846078690,0.18659379,91006.0,91005.0,0.00343627]
[1731846078991,0.054939,91006.0,91005.0,0.00343627]
[1731846079201,0.054939,91005.0,91000.0,0.054942]
[1731846079392,0.05494,91004.0,91001.0,0.00343986]
[1731846079591,0.05494,91004.0,91002.0,0.00343986]
[1731846079797,0.05494,91004.0,91003.0,0.00343986]
[1731846082500,0.16440176,91008.0,91003.0,0.00343644]
[1731846082692,0.054939,91005.0,91004.0,0.00343644]
[1731846084907,0.32964,91005.0,90995.0,0.19673102]
[1731846085206,0.054947,90992.0,90990.0,0.19673102]
[1731846085403,0.054948,90989.0,90988.0,0.19673102]
[1731846085593,0.054951,90985.0,90984.0,0.19673102]
[1731846086290,0.0638,90991.0,90983.0,0.19673102]
[1731846086497,0.054952,90983.0,90982.0,0.19673102]
[1731846086899,0.054952,90983.0,90982.0,0.054953]
[1731846087906,0.054953,90981.0,90980.0,0.26214078]
[1731846088203,0.054959,90972.0,90970.0,0.00521263]
[1731846088404,0.0642,90971.0,90970.0,0.00011263]
[1731846088703,0.0642,90971.0,90970.0,0.19679807]
[1731846088904,0.119159,90971.0,90970.0,0.19679807]
[1731846089097,0.119159,90971.0,90970.0,0.00011263]
[1731846090104,0.50392814,90971.0,90960.0,0.13960236]
[1731846090305,0.054967,90959.0,90951.0,0.0051]
[1731846090610,0.3608,90961.0,90942.0,0.0051]
[1731846090611,0.054976,90943.0,90942.0,0.0051]
[1731846090809,0.11954,90958.0,90937.0,1.55498]
[1731846091110,0.054978,90940.0,90938.0,0.00562423]
[1731846091416,0.054978,90940.0,90939.0,0.00011664]
[1731846091596,0.054978,90940.0,90939.0,0.00574087]
[1731846092108,0.054969,90956.0,90939.0,0.00574087]
[1731846092298,0.054969,90956.0,90940.0,0.00562423]
[1731846092502,0.054969,90956.0,90939.0,0.00011664]
[1731846092710,0.17421919,90958.0,90940.0,0.00562153]
[1731846092711,0.054977,90942.0,90940.0,0.00562153]
[1731846092901,0.17421919,90958.0,90939.0,0.00011664]
[1731846093102,0.17421919,90958.0,90944.0,0.054975]
[1731846093103,0.054975,90946.0,90944.0,0.054975]
[1731846093496,0.054975,90946.0,90939.0,0.00011664]
[1731846093497,0.0317,90958.0,90939.0,0.00011664]
[1731846093701,0.054969,90956.0,90947.0,0.3608]
[1731846093899,0.08788,90958.0,90947.0,0.3608]
[1731846094098,0.054972,90951.0,90948.0,0.00568832]
[1731846094305,0.054972,90951.0,90947.0,0.3608]
[1731846094512,0.054972,90950.0,90948.0,0.00568611]
[1731846094706,0.054972,90950.0,90944.0,0.3608]
[1731846094909,0.054975,90945.0,90944.0,0.3608]
[1731846095303,0.054975,90945.0,90944.0,0.36645193]
[1731846095603,0.0323,90949.0,90939.0,0.00011664]
[1731846095809,0.054977,90942.0,90940.0,0.00565011]
[1731846096110,0.054977,90942.0,90939.0,0.00011664]
[1731846096111,0.054977,90942.0,90941.0,0.00565011]
[1731846096594,0.054977,90942.0,90939.0,0.05509464]
[1731846096595,0.415777,90942.0,90939.0,0.00011664]
[1731846096801,0.415777,90942.0,90917.0,0.3608]
[1731846096802,0.054984,90930.0,90917.0,0.3608]
[1731846097001,0.054991,90918.0,90917.0,0.3608]
[1731846097301,0.054991,90918.0,90917.0,0.36433925]
[1731846097697,0.054991,90918.0,90917.0,0.36433644]
[1731846098007,0.05512079,90918.0,90917.0,0.36442817]
[1731846098210,0.00012979,90918.0,90917.0,0.36442817]
[1731846099908,0.00012979,90918.0,90917.0,0.41942017]
[1731846100304,0.00012979,90918.0,90917.0,0.36444201]
[1731846100709,0.00012979,90918.0,90917.0,0.41943401]
[1731846101004,0.142812,90951.0,90942.0,0.054977]
[1731846101206,0.3608,90952.0,90944.0,0.054976]
[1731846101413,0.05404523,90958.0,90942.0,1.5]
[1731846101606,0.05404523,90958.0,90953.0,0.05497]
[1731846101799,0.00013753,90957.0,90953.0,0.05497]
[1731846102499,0.00013753,90957.0,90951.0,0.3608]
[1731846102703,0.05510553,90957.0,90954.0,0.054969]
[1731846103106,0.054968,90956.0,90951.0,0.3608]
[1731846103303,0.054971,90953.0,90952.0,0.00355413]
[1731846103504,0.05497,90954.0,90948.0,0.054973]
[1731846103710,0.00013753,90957.0,90949.0,0.0035547]
[1731846103909,0.054972,90951.0,90950.0,0.0035547]
[1731846104506,0.00013753,90957.0,90956.0,0.054968]
[1731846105011,0.00013753,90957.0,90956.0,0.05848085]
[1731846106515,0.05510553,90957.0,90956.0,0.00351285]
[1731846107013,0.054971,90953.0,90943.0,0.0051]
[1731846107205,0.054971,90953.0,90941.0,0.44864]
[1731846107206,0.00013753,90957.0,90948.0,0.054973]
[1731846107405,0.054971,90952.0,90949.0,0.00343827]
[1731846107614,0.054971,90952.0,90950.0,0.00343827]
[1731846107804,0.054971,90952.0,90948.0,0.054973]
[1731846108001,0.05510553,90957.0,90952.0,0.054971]
[1731846108208,0.05497,90954.0,90953.0,0.00343826]
[1731846110016,0.08797753,90957.0,90942.0,1.5051]
[1731846110017,0.0629,90956.0,90942.0,0.0051]
[1731846110213,0.0629,90956.0,90947.0,0.054974]
[1731846110513,0.054973,90949.0,90948.0,0.00349039]
[1731846110913,0.0629,90956.0,90948.0,0.00349239]
[1731846110914,0.054969,90955.0,90948.0,0.00349239]
[1731846111109,0.0629,90956.0,90938.0,0.054979]
[1731846111311,0.054978,90940.0,90939.0,0.00912065]
[1731846112414,0.054978,90940.0,90926.0,0.0051]
[1731846112723,0.054985,90928.0,90927.0,0.00912294]
[1731846113312,0.054985,90928.0,90927.0,0.0091624]
[1731846114520,0.054983,90931.0,90927.0,0.00930913]
[1731846114719,0.0327,90932.0,90928.0,0.00930913]
[1731846114927,0.0327,90932.0,90919.0,0.054991]
[1731846114928,0.054989,90922.0,90919.0,0.054991]
[1731846115121,0.054989,90922.0,90921.0,0.3701084]
[1731846117617,0.054989,90922.0,90921.0,0.37006887]
[1731846120223,0.054989,90922.0,90921.0,0.37011231]
[1731846120724,0.054989,90922.0,90917.0,1.55489147]
[1731846121023,0.054989,90922.0,90921.0,0.00360301]
[1731846121215,0.054989,90922.0,90921.0,0.00938494]
[1731846122628,0.0637,90932.0,90917.0,1.50009173]
[1731846122815,0.0637,90932.0,90918.0,0.0093846]
[1731846123020,0.05499,90921.0,90919.0,0.0093846]
[1731846123228,0.05499,90921.0,90920.0,0.0093846]
[1731846123426,0.05499,90921.0,90920.0,0.00940194]
[1731846130142,0.054989,90922.0,90920.0,0.00933264]
[1731846130331,0.054989,90922.0,90921.0,0.00574383]
[1731846130531,0.054989,90922.0,90921.0,0.00933264]
[1731846134842,0.054989,90922.0,90921.0,0.06432264]
[1731846135647,0.054989,90922.0,90921.0,0.00946617]
[1731846136244,0.05425696,90931.0,90921.0,0.00946617]
[1731846136436,0.00140001,90943.0,90929.0,0.3608]
[1731846136636,0.054976,90943.0,90939.0,0.3608]
[1731846136839,0.0309,90950.0,90940.0,0.04172299]
[1731846136840,0.1311353,90942.0,90940.0,0.04172299]
[1731846137039,0.054977,90941.0,90940.0,0.03586201]
[1731846137341,0.054977,90941.0,90940.0,0.00948389]
[1731846138642,0.39310001,90950.0,90944.0,0.054976]
[1731846138643,0.1311353,90946.0,90944.0,0.054976]
[1731846138844,0.054972,90951.0,90945.0,0.04028389]
[1731846139046,0.1311353,90954.0,90952.0,0.054971]
[1731846139348,0.054969,90956.0,90954.0,0.05497]
[1731846139649,0.054969,90956.0,90955.0,0.00948389]
[1731846140250,0.054969,90956.0,90955.0,0.00941971]
[1731846142344,0.1861043,90956.0,90955.0,0.00941971]
[1731846142540,0.054969,90956.0,90955.0,0.00362229]
[1731846142944,0.384809,90956.0,90955.0,0.00362229]
[1731846143252,0.384809,90956.0,90938.0,0.054979]
[1731846143253,0.054976,90944.0,90938.0,0.054979]
[1731846143553,0.54924989,90956.0,90938.0,0.054979]
[1731846143554,0.054979,90939.0,90938.0,0.054979]
[1731846143741,0.054979,90939.0,90938.0,0.06071534]
[1731846143942,0.054979,90939.0,90938.0,0.05856313]
[1731846144148,0.054979,90939.0,90938.0,0.06429946]
[1731846145247,0.054979,90939.0,90938.0,0.00932046]
[1731846146948,0.054979,90939.0,90938.0,0.00939268]
[1731846147156,0.054979,90939.0,90938.0,0.0036119]
[1731846148354,0.054986,90928.0,90926.0,0.060086]
[1731846148561,0.054986,90928.0,90927.0,0.00941663]
[1731846148951,0.054986,90928.0,90927.0,0.06440263]
[1731846150158,0.054986,90928.0,90927.0,0.06077753]
[1731846150357,0.054986,90928.0,90927.0,0.06439615]
[1731846150856,0.054986,90928.0,90927.0,0.00941015]
[1731846151558,0.054982,90934.0,90930.0,0.054984]
[1731846151752,0.054982,90934.0,90931.0,0.00361862]
[1731846151955,0.08784,90939.0,90932.0,0.00361862]
[1731846152158,0.054982,90934.0,90933.0,0.00361862]
[1731846153566,0.08784,90939.0,90925.0,0.054987]
[1731846153567,0.054985,90929.0,90925.0,0.054987]
[1731846153772,0.054985,90929.0,90926.0,0.00940722]
[1731846154071,0.054985,90929.0,90925.0,0.054987]
[1731846154372,0.054985,90929.0,90926.0,0.0094072]
[1731846154675,0.054985,90928.0,90927.0,0.0094072]
[1731846155463,0.054985,90928.0,90927.0,0.0643932]
[1731846155761,0.054985,90928.0,90927.0,0.0094072]
[1731846156975,0.054985,90928.0,90922.0,0.415789]
[1731846157268,0.21938734,90939.0,90923.0,0.00363074]
[1731846157269,0.054987,90926.0,90923.0,0.00363074]
[1731846157457,0.054987,90926.0,90922.0,0.415789]
[1731846157458,0.054987,90925.0,90924.0,0.00944167]
[1731846160367,0.054987,90925.0,90924.0,0.00573524]
[1731846160671,0.054987,90925.0,90924.0,0.00931868]
[1731846161269,0.054987,90925.0,90924.0,0.27154522]
[1731846161772,0.08784,90939.0,90924.0,0.27154522]
[1731846161972,0.14325476,90939.0,90925.0,0.00931868]
[1731846162174,0.054987,90925.0,90921.0,0.26222654]
[1731846162369,0.3608,90933.0,90922.0,0.00929408]
[1731846162573,0.3608,90933.0,90917.0,9.173e-05]
[1731846162574,0.0313,90932.0,90917.0,9.173e-05]
[1731846162890,0.054991,90918.0,90917.0,9.173e-05]
[1731846163179,0.054991,90918.0,90917.0,0.00944547]
[1731846164270,0.054991,90918.0,90917.0,9.173e-05]
[1731846164464,0.054991,90918.0,90917.0,0.00585282]
[1731846164666,0.054991,90918.0,90917.0,0.00945241]
[1731846165267,0.054991,90918.0,90917.0,9.173e-05]
[1731846165462,0.054991,90918.0,90917.0,0.00947297]
[1731846173883,0.054991,90918.0,90917.0,0.0094823]
[1731846174083,0.054991,90918.0,90917.0,9.173e-05]
[1731846174275,0.054991,90918.0,90917.0,0.00948391]
[1731846176290,0.18680927,90918.0,90917.0,0.00370343]
[1731846176490,0.054991,90918.0,90917.0,0.00370343]
[1731846176675,0.054991,90918.0,90917.0,0.00952503]
[1731846177073,0.054991,90918.0,90917.0,9.173e-05]
[1731846177276,0.18680776,90918.0,90917.0,0.00372832]
[1731846177687,0.18680776,90918.0,90917.0,0.00966865]
[1731846178088,0.51676776,90918.0,90917.0,0.00966865]
[1731846178277,0.054999,90906.0,90905.0,0.0051]
[1731846178585,0.08784,90906.0,90904.0,0.26222654]
[1731846178886,0.054999,90905.0,90904.0,0.26222654]
[1731846182281,0.384999,90905.0,90904.0,0.26222654]
[1731846183484,0.43927907,90905.0,90904.0,0.26222654]
[1731846183780,0.43927907,90905.0,90900.0,0.1]
[1731846183781,0.055002,90901.0,90900.0,0.1]
[1731846184092,0.745842,90901.0,90900.0,0.1]
[1731846184690,0.415802,90901.0,90900.0,0.1]
[1731846185092,0.3608,90901.0,90900.0,0.155002]
[1731846185294,0.05428007,90905.0,90904.0,0.055]
[1731846185591,0.13171437,90906.0,90904.0,1.555]
[1731846186089,0.13171437,90906.0,90904.0,0.055]
[1731846186294,0.13171437,90906.0,90905.0,0.054999]
[1731846186491,0.13171437,90906.0,90905.0,1.554999]
[1731846187200,0.13171437,90906.0,90905.0,2.245799]
[1731846187385,0.16464297,90912.0,90911.0,0.054996]
[1731846187783,0.19757156,90917.0,90908.0,0.3608]
[1731846188094,0.00014022,90918.0,90916.0,0.415793]
[1731846188284,0.00014022,90918.0,90917.0,0.00583505]
[1731846188490,0.23050016,90927.0,90917.0,0.46640379]
[1731846188694,0.23050016,90927.0,90926.0,0.415787]
[1731846188890,0.23050016,90927.0,90926.0,1.92162205]
[1731846189595,0.00013057,90930.0,90929.0,0.054985]
[1731846189892,0.00013057,90930.0,90929.0,0.42162005]